Cogmind - Beta 11 X10 @@@ ROGUE MODE // 2022.03.15 @ 16:30:34 Player: maxwell Result: Destroyed by S-10 Pest with Light Assault Rifle Performance ------------- Evolutions (0) 0 Regions Visited (1) 200 Robots Destroyed (17) 85 Value Destroyed (503) 503 Prototype IDs (0) 0 Alien Tech Used (0) 0 Bonus (0) 0 TOTAL SCORE: 788 Bonus ------- None Cogmind --------- Core Integrity 0/250 Matter 300/300 Energy 250/250 System Corruption 0% Temperature Cool (0) Movement Treading (480) Ox4 Location -10/Materials Parts ------- > --- POWER (1) -------- Ion Engine > --- PROPULSION (2) --- Light Treads > --- UTILITY (2) ------ Huge Storage Unit > --- WEAPON (2) ------- Hammer Hammer > --- INVENTORY (25) --- Light Treads Compact Wheel Heat Sink Improved Heat Sink Hacking Suite Small Laser Grenade Launcher Peak State ------------ > --- POWER ------------ Light Ion Engine > --- PROPULSION ------- Light Treads Light Treads > --- UTILITY ---------- Heat Sink Small Storage Unit > --- WEAPON ----------- Assault Rifle Light Assault Rifle > --- INVENTORY -------- Ion Engine Wheel Compact Wheel Improved Heat Sink Hacking Suite Small Laser [Rating: 8] Favorites ----------- Power Ion Engine Engine Ion Engine Propulsion Light Treads Treads Light Treads Leg Aluminum Leg Wheel Wheel Utility Small Storage Unit Device Heat Sink Storage Small Storage Unit Processor Targeting Computer Protection Light Armor Plating Weapon Light Assault Rifle Energy Gun Small Laser Ballistic Gun Light Assault Rifle Impact Weapon Hammer Build | -11 -10 ------- Run | Scr Mat Slots Evolved . | . . Power . | . . Propulsion . | . . Utility . | . . Weapon . | . . Parts Attached 22 | 7 15 Power 3 | 1 2 Engine 3 | 1 2 Core . | . . Reactor . | . . Propulsion 7 | 3 4 Treads 4 | 2 2 Leg 1 | 1 . Wheel 2 | . 2 Hover . | . . Flight . | . . Utility 6 | 1 5 Device 1 | . 1 Storage 2 | 1 1 Processor 1 | . 1 Hackware . | . . Protection 2 | . 2 Artifact . | . . Weapon 6 | 2 4 Energy Gun 2 | . 2 Energy Cannon . | . . Ballistic Gun 2 | 2 . Ballistic Cannon . | . . Launcher . | . . Special Weapon . | . . Impact Weapon 2 | . 2 Slashing Weapon . | . . Piercing Weapon . | . . Special Melee Weapon . | . . Unidentified Prototypes . | . . Parts Lost 10 | . 10 Power 2 | . 2 Propulsion 3 | . 3 Utility 2 | . 2 Weapon 3 | . 3 Highest Loss Streak 3 | . 3 To Critical Strikes . | . . Average Slot Usage (%) 88 | . 88 Engine 7 | . 7 Treads 16 | . 16 Wheel 10 | . 10 Device 1 | . 1 Storage 14 | . 14 Processor 3 | . 3 Protection 6 | . 6 Energy Gun 1 | . 1 Ballistic Gun 24 | . 24 Impact Weapon 1 | . 1 Naked Turns . | . . Heaviest Build 90 | 11 90 Greatest Support 40 | 40 40 Greatest Overweight (x) 5 | . 5 Average Overweight (x) 1 | . 1 Largest Inventory Capacity 25 | 8 25 Average Capacity 15 | 6 15 Most Carried 12 | 4 12 Average Carried 7 | 1 8 Final Capacity 25 | 8 25 Final Carried 7 | 4 7 Class Distribution -------------------- 100% | Mutant Dominant Class ---------------- Mutant | -10/Materials Resources | -11 -10 ----------- Run | Scr Mat Matter Collected 621 | 161 460 Remotely . | . . Salvage Created 628 | . 628 Parts 38 | . 38 Haulers Intercepted 1 | . 1 Recyclers Shooed . | . . Parts Field Recycled . | . . Retrieved Matter . | . . Parts Self-Destructed . | . . Prevented . | . . Kills | -11 -10 ------- Run | Scr Mat Combat Hostiles Destroyed 14 | . 14 Melee 1 | . 1 Guns 12 | . 12 Classes Destroyed 5 | . 5 Tunneler 1 | . 1 Hauler 1 | . 1 Operator 1 | . 1 Swarmer 1 | . 1 Grunt 13 | . 13 Best Kill Streak 3 | . 3 Combat Bots Only 3 | . 3 Max Kills in Single Turn 1 | . 1 Gunslinging . | . . Exploded . | . . Melee 1 | . 1 Uniques/NPCs Destroyed . | . . Combat | -11 -10 -------- Run | Scr Mat Damage Taken 1382 | . 1382 Core 252 | . 252 Absorbed by Shields . | . . Redirected to Shielding 50 | . 50 Core Remaining (%) 100 | 100 . Volleys Fired 73 | . 73 Largest 2 | . 2 Hottest 60 | . 60 Shots Fired 145 | . 145 Gun 145 | . 145 Cannon . | . . Launcher . | . . Special . | . . Kinetic 127 | . 127 Thermal 18 | . 18 Explosive . | . . Electromagnetic . | . . Robot Hit Streak 10 | . 10 Robot Miss Streak 4 | . 4 Penetration Max . | . . Secondary Targets 2 | . 2 Max Gunslinging Chain 1 | . 1 Shots Hit Robots 102 | . 102 Core Hits 36 | . 36 Critical Kills . | . . Critical Parts Destroyed 3 | . 3 Critical Strikes 3 | . 3 Destroy 1 | . 1 Smash 2 | . 2 Melee Attacks 16 | . 16 Impact 16 | . 16 Slashing . | . . Piercing . | . . Sneak Attacks . | . . Combat Hostiles . | . . Follow-up Attacks 3 | . 3 Damage Inflicted 1196 | 9 1187 Guns 1031 | . 1031 Cannons . | . . Explosions . | . . Melee 156 | . 156 Ramming 9 | 9 . Kinetic 896 | . 896 Thermal 135 | . 135 Explosive . | . . Electromagnetic . | . . Impact 156 | . 156 Slashing . | . . Piercing . | . . Highest Corruption . | . . Average Corruption . | . . Corruption Purged . | . . Corruption Blocked . | . . Overload Shots . | . . Overflow Damage 46 | . 46 Projectiles . | . . Explosions . | . . Melee 46 | . 46 Knockbacks 1 | . 1 Impact 1 | . 1 Kinetic . | . . Secondary . | . . Self-Inflicted Damage . | . . Shots . | . . Rammed 3 | 2 1 Targets Rammed 3 | 2 1 Kicked . | . . Crushed . | . . Highest Temperature 89 | . 89 Average Temperature 20 | . 20 Received Heat Transfer 687 | . 687 Siege Activations . | . . Robots Corrupted . | . . Combat Hostiles . | . . Parts Fried 1 | . 1 Impact Corruptions 3 | . 3 Robots Melted . | . . Combat Hostiles . | . . Parts Melted . | . . Heat Transferred 300 | . 300 Parts Sabotaged . | . . Parts Stolen . | . . Parts Stripped . | . . Power Chain Reactions . | . . Missiles Intercepted . | . . Alert | -11 -10 ------- Run | Scr Mat Peak Influence 175 | . 175 Initial . | . . Average 54 | . 57 Maximum Alert Level . | . . Low Security (%) 100 | 100 100 Level 1 . | . . Level 2 . | . . Level 3 . | . . Level 4 . | . . Level 5 . | . . High Security . | . . Max Security . | . . Squads Dispatched 5 | . 5 Investigation 1 | . 1 Extermination . | . . Reinforcement 4 | . 4 Assault . | . . Garrison . | . . Intercept . | . . Construction Impeded . | . . Haulers Reinforced . | . . Active Scanning Responses . | . . Cargo Convoy Interrupts . | . . Stealth | -11 -10 --------- Run | Scr Mat Distress Signals 2 | . 2 Communications Jammed . | . . Distress Signals . | . . Times Spotted 38 | . 38 Peak Tracking Total 4 | . 4 Tactical Retreats 1 | . 1 Traps | -11 -10 ------- Run | Scr Mat Traps Triggered 1 | . 1 Indirectly . | . . Trap Hack Attempts . | . . Triggered . | . . Disarmed . | . . Reprogrammed . | . . Reused . | . . Traps Extracted . | . . Installed . | . . Triggered . | . . Machines | -11 -10 ---------- Run | Scr Mat Machines Disabled . | . . Max in Single Turn . | . . Machines Sabotaged . | . . Garrisons Compromised . | . . Overloaded Fab Kills . | . . Hacking | -11 -10 --------- Run | Scr Mat Machines Accessed 4 | . 4 Terminals 3 | . 3 Fabricators . | . . Repair Stations . | . . Recycling Units 1 | . 1 Scanalyzers . | . . Garrison Access . | . . Total Hacks 16 | . 16 Successful 9 | . 9 Failed 7 | . 7 Catastrophic . | . . Database Lockouts . | . . Manual 13 | . 13 Terminals 12 | . 12 Fabricators . | . . Repair Stations . | . . Recycling Units 4 | . 4 Scanalyzers . | . . Garrison Access . | . . Terminal Hacks 3 | . 3 Robot Analysis 2 | . 2 Terminal Index 1 | . 1 Fabricator Hacks . | . . Repair Station Hacks . | . . Recycling Unit Hacks 1 | . 1 Retrieve Components 1 | . 1 Scanalyzer . | . . Garrison Access Hacks . | . . Unauthorized Hacks 5 | . 5 Terminals 4 | . 4 Track 1 | . 1 Botnet 2 | . 2 Operators 1 | . 1 Fabricators . | . . Repair Stations . | . . Recycling Units 1 | . 1 Tunnel 1 | . 1 Scanalyzers . | . . Garrison Access . | . . Data Cores Recovered . | . . Used . | . . Hacking Detections 3 | . 3 Full Trace Events . | . . Feedback Events . | . . Feedback Blocked . | . . Robot Schematics Acquired . | . . Robots Built . | . . Authchips . | . . Time . | . . Total Robot Build Rating . | . . Part Schematics Acquired . | . . Parts Built . | . . Authchips . | . . Time . | . . Total Part Build Rating . | . . Parts Repaired . | . . Time . | . . Parts Recycled . | . . Recycled Matter . | . . Retrieved Matter . | . . Retrieved Components 3 | . 3 Parts Scanalyzed . | . . Part Schematics Acquired . | . . Parts Damaged . | . . Bothacking | -11 -10 ------------ Run | Scr Mat Used RIF Installer . | . . Robots Hacked . | . . Non-combat . | . . Combat . | . . Robot Hacks Applied . | . . Relay Couplers Released . | . . Fabnet Peak Effective % . | . . Robots Rewired . | . . Allies Hacked . | . . Hacks Repelled . | . . Allies | -11 -10 -------- Run | Scr Mat Total Allies . | . . Largest Group . | . . Highest-Rated Group . | . . Highest-Rated Ally . | . . Total Orders . | . . Ally Attacks . | . . Total Damage . | . . Kills . | . . Allies Corrupted . | . . Allies Melted . | . . Intel | -11 -10 ------- Run | Scr Mat Robot Analysis Total 2 | . 2 Derelict Logs Recovered . | . . Drone Launches . | . . Drone Recoveries . | . . Exploration | -11 -10 ------------- Run | Scr Mat Turns Passed 1556 | 87 1469 Spaces Moved 656 | 49 607 Core 9 | 9 . Treads 443 | 39 404 Legs 1 | 1 . Wheels 203 | . 203 Hover . | . . Flight . | . . Fastest Speed 50 | 50 80 Average Speed 174 | 138 176 Slowest Speed 480 | 160 480 Overloaded Moves . | . . Propulsion Burnouts . | . . Robots Hopped . | . . Cave-ins Triggered . | . . Exploration Rate (%) 44 | 4 84 Regions Visited 1 Branch Regions . Pre-discovered Areas 1 | . 1 Known Exits Taken . | . . Unknown Exits Taken 1 | 1 . Scrap Searched . | . . Spaces Dug . | . . Terrain Destroyed . | . . Melee . | . . Projectile . | . . AOE . | . . Terrain Rammed . | . . Walls Destroyed . | . . Machines Disabled . | . . Actions | -11 -10 --------- Run | Scr Mat Total 913 | 64 849 Wait 128 | 1 127 Move 655 | 48 607 Hop . | . . Pick Up 14 | 4 10 Fast Attach 11 | 7 4 Attach 8 | . 8 Detach 4 | 1 3 Swap 3 | . 3 Drop 2 | 1 1 Fire 73 | . 73 Melee 12 | . 12 Ram . | . . Kick . | . . Crush 3 | 2 1 Escape Stasis . | . . Rewire . | . . Trap . | . . Miscellaneous . | . . Route ------- -11/Scrapyard -10/Materials (discovered 4 exits: [*Mat x3] / [*Min]) History --------- Turn | Location | Event 8 | -11/Scrapyard | Discovered new exit (range 15) 88 | -11/Scrapyard | Entered Materials 317 | -10/Materials | Build established: Mutant 406 | -10/Materials | Discovered new exit (range 10) 572 | -10/Materials | Discovered new exit (range 7) 849 | -10/Materials | Discovered new exit (range 8) 1330 | -10/Materials | Core integrity fell below 50% 1363 | -10/Materials | Lost 3 parts (1n1u1w) 1510 | -10/Materials | Core integrity fell below 20% 1523 | -10/Materials | Discovered new exit (range 13) 1557 | -10/Materials | Destroyed by S-10 Pest with Light Assault Rifle Last Messages --------------- 01458_ G-47 Trooper suffers critical hit (Smash). 01458_ Destroyed Particle Gun. 01458_ Destroyed Lgt. Nuclear Core. 01458_ G-47 Trooper system corrupted by crushing effect. 01459_ G-47 Trooper system terminally corrupted. 01459_ Imp. Heat Sink fried. 01464_ Acquired 30 matter. 01502_ Hammer follow-up attack on G-34 Mercenary. 01502_ G-34 Mercenary destroyed. 01517_ G-34 Mercenary knocked back. 01523_ EXIT=FOUND 01527_ G-34 Mercenary suffers critical hit (Smash). 01527_ Destroyed Aluminum Leg. 01527_ G-34 Mercenary system corrupted by crushing effect. 01532_ Hammer follow-up attack on G-34 Mercenary. 01535_ G-34 Mercenary misfires. 01541_ Propulsion Shielding destroyed. 01550_ G-34 Mercenary misfires. 01554_ Lgt. Treads destroyed. 01556_ Hammer follow-up attack on G-34 Mercenary. Map ----- +----------------------------------------------------+ | ???????????????????# #????????????? | | ???????????????????# #????????????? | | ???????????????????# ########?????? | | ???????????????????# # #?????? | | ???????????????????# # #?????? | | ???????????????????# # #?????? | | ???????????????????# [# #?????? | | ???????????????????# !=+ #?????? | | ?????????????####### %#= #?????? | | ?????????????# # ########?????? | | ?????????? # # #? ??????? | | ?????????+ #""" # #? """ ??????? | | ?????????# #""" # # """""??????? | | ?????????# #""" # #^"""""??????? | | ?????????# #""" +% + """""??????? | | ?????????# #""" # # """ ????## | | ?????????# s # # # ???# | | ?????????# # # #? #?# | | ?????????# s# ! # #?#########?# | | ?????????# # # #???????????## | | ?????????# # # #?????######## | | ?????????# ####### #?????# ! # | | ?????????# #?????# #?????#""" + | | ?????????# ####### #?????#""" # | | ?????????# #?????#""" %# | | ?????????# g@ = #?????# !+ | | ?????????# """% #?????# = !=# | | ?????????###### """= "#????######## | | ??????????????# """ "#????####### | | ??????????????# "#????# | | ??????????????# T#????# ##### | | ??????????????+ == "#????# #??### | | ????????????? # =] "#???## ##?# | | ???????????? # = "#???# #?# | | ??????????????# ##???# #?# | | ??????????????# #????# #?# < | | ??????????????# #????#####?# | | ??????????????# # < #??????????### | | ?????????????? # ?????????????? | | ??????????????*]]**##???????????????? | | ???????????????]]**?????????????????? | | ????????????????????????????????????? | | ????????????????????????????????????? | | ????????????????????????????????????? | | ????????????????????????????????????? | | ????????????????????????????????????? | | | | | | | | | +----------------------------------------------------+ Best States ------------- Heat Dissipation 35 Energy Generation 10 Energy Capacity 250 Matter Stores 300 Matter Capacity 300 Sight Range 16 Terrain Scan Density 10 Armor Coverage 150 Propulsion Shielding 33 Evasion (%) 50 Targeting Accuracy 5 Recoil Reduction 2 Item Schematics ----------------- None Robot Schematics ------------------ None Fabricated ------------ Nothing Alien Tech Used ----------------- None Achievements -------------- None Challenges ------------ None Game ------ Seed FusionTachyonDetonator Manual? 0 Play Time 00:10:37 Cumulative 202.5 hours Start 2022.03.15 @ 16:25:01 End 2022.03.15 @ 16:30:34 Sessions 1 Manual Loads 0 Difficulty Rogue Special Mode None Game No. 308 Rogue 286 Adventurer 4 Explorer 18 Win Type - Total 10 Types 8/0/0/2/0/0/0/0/0 Lore% 69 Gallery% 86 Achievement% 70 Wizard Run 0 Options --------- ASCII 0 Keyboard 1 Movement Numpad Keybinds 0 Fullscreen 1 Font 18/SmallcapsGlow Map View 76x50 Tactical HUD 1 Map Filters NONE Filters NONE Steam 1 RUN: ff8dc0ed-95de-46b6-b811-f4d0f5f49763